[Event "EIRCC 2019"]
[Site "Tallinn"]
[Date "2019.12.05"]
[Round "3.6"]
[White "Blohberger, Felix"]
[Black "Demidov, Mikhail"]
[Result "0-1"]
[ECO "A04"]
[WhiteElo "2316"]
[BlackElo "2635"]
[Annotator "RC"]
[PlyCount "242"]
[EventDate "2019.12.05"]
[EventType "swiss"]
[EventCountry "EST"]
[SourceTitle "playchess.com"]
[Source "ChessBase"]
[SourceQuality "1"]
[TimeControl "900+10"]

1. Nf3 {[%emt 0:01:26]} g6 {[%emt 0:00:00]} 2. e4 {[%emt 0:00:04]} Bg7 {[%emt 0:00:39]} 3. d4 {[%emt 0:00:02]} a6 {[%emt 0:00:03]} 4. c4 {[%emt 0:00:03]} d6 {[%emt 0:00:07]} 5. Nc3 {[%emt 0:00:01]} Bg4 {[%emt 0:00:08]} 6. Be2 {[%emt 0:00:02]} c5 {[%emt 0:00:55]} 7. d5 {[%emt 0:00:20]} Bxf3 {[%emt 0:00:56]} 8. Bxf3 {[%emt 0:00:05]} b5 {[%emt 0:00:02]} 9. cxb5 {[%emt 0:00:28]} axb5 {[%emt 0:00:01]} 10. Nxb5 {[%emt 0:00:17]} Qa5+ {[%emt 0:00:02]} 11. Nc3 {[%emt 0:00:02]} Bxc3+ {[%emt 0:00:01]} 12. bxc3 {[%emt 0:00:01]} Qxc3+ {[%emt 0:00:02]} 13. Bd2 {[%emt 0:00:01]} Qd4 {[%emt 0:00:41]} 14. O-O {[%emt 0:00:14]} Nf6 {[%emt 0:00:02]} 15. Qc2 {[%emt 0:00:56]} Nbd7 {[%emt 0:00:26]} 16. Bc3 {[%emt 0:04:44]} Qa4 {[%emt 0:00:08]} 17. Qxa4 {[%emt 0:01:24]} Rxa4 {[%emt 0:00:01]} 18. Rfe1 {[%emt 0:00:02]} O-O {[%emt 0:00:38]} 19. e5 {[%emt 0:00:11]} Nxe5 {[%emt 0:00:48]} 20. Bxe5 {[%emt 0:00:03]} dxe5 {[%emt 0:00:01]} 21. Rxe5 {[%emt 0:00:02]} Ra7 {[%emt 0:00:19]} 22. Rae1 {[%emt 0:01:01]} Rb8 {[%emt 0:00:11]} 23. Rc1 {[%emt 0:02:28]} Kf8 {[%emt 0:00:29]} 24. Re2 {[%emt 0:00:10]} Ne8 {[%emt 0:00:22]} 25. Rec2 {[%emt 0:00:10]} Nd6 {[%emt 0:00:10]} 26. g3 {[%emt 0:00:35]} h5 {[%emt 0:00:23]} 27. h4 {[%emt 0:00:06]} Rba8 {[%emt 0:00:14]} 28. Rxc5 {[%emt 0:00:04]} Rxa2 {[%emt 0:00:02]} 29. Kg2 {[%emt 0:00:07]} Rd2 {[%emt 0:00:11]} 30. R5c2 {[%emt 0:00:05]} Rd4 {[%emt 0:00:03]} 31. Re1 {[%emt 0:00:07]} Ra7 {[%emt 0:00:05]} 32. Rb2 {[%emt 0:00:07]} Kg7 {[%emt 0:00:02]} 33. Rbe2 {[%emt 0:00:02]} Kf6 {[%emt 0:00:02]} 34. Rb2 {[%emt 0:00:14]} Rc7 {[%emt 0:00:11]} 35. Ra2 {[%emt 0:00:18]} Rd3 {[%emt 0:00:18]} 36. Be4 {[%emt 0:01:01]} Rb3 {[%emt 0:00:13]} 37. Bf3 {[%emt 0:00:16]} Rcc3 {[%emt 0:00:13]} 38. Be2 {[%emt 0:00:18]} Rb4 {[%emt 0:00:33]} 39. Bf3 {[%emt 0:00:18]} Rb7 {[%emt 0:00:05]} 40. Rd2 {[%emt 0:00:32]} Rbb3 41. Be2 {[%emt 0:00:22]} Ra3 {[%emt 0:00:19]} 42. Kg1 {[%emt 0:00:09]} Ra4 {[%emt 0:00:17]} 43. Bf1 {[%emt 0:00:09]} Nf5 {[%emt 0:00:17]} 44. Bg2 {[%emt 0:00:15]} Rd4 {[%emt 0:00:12]} 45. Rde2 {[%emt 0:00:23]} Rc7 {[%emt 0:00:05]} 46. Be4 {[%emt 0:00:10]} Nd6 {[%emt 0:00:05]} 47. Bg2 {[%emt 0:00:02]} Rdc4 {[%emt 0:00:03]} 48. Re3 {[%emt 0:00:08]} Nf5 {[%emt 0:00:15]} 49. R3e2 {[%emt 0:00:18]} Rc1 {[%emt 0:00:03]} 50. Kh2 {[%emt 0:00:03]} Rxe1 {[%emt 0:00:04]} 51. Rxe1 {[%emt 0:00:01]} Rc2 {[%emt 0:00:03]} 52. Kg1 {[%emt 0:00:01]} Rd2 {[%emt 0:00:03]} 53. Ra1 {[%emt 0:00:08]} Nd6 {[%emt 0:00:09]} 54. Re1 {[%emt 0:00:07]} Rd3 {[%emt 0:00:09]} 55. Ra1 {[%emt 0:00:03]} Rd4 {[%emt 0:00:09]} 56. Re1 {[%emt 0:00:02]} Rb4 {[%emt 0:00:04]} 57. Ra1 {[%emt 0:00:02]} g5 {[%emt 0:00:07]} 58. hxg5+ Kxg5 59. Re1 {[%emt 0:00:06]} Kf6 {[%emt 0:00:03]} 60. Re3 {[%emt 0:00:04]} h4 {[%emt 0:00:02]} 61. Rf3+ {[%emt 0:00:11]} Kg7 {[%emt 0:00:02]} 62. gxh4 {[%emt 0:00:03]} Rxh4 {[%emt 0:00:02]} 63. Rg3+ {[%emt 0:00:01]} Kf8 {[%emt 0:00:02]} 64. Re3 {[%emt 0:00:06]} Rb4 {[%emt 0:00:04]} 65. Re5 {[%emt 0:00:08]} Rb1+ {[%emt 0:00:05]} 66. Kh2 {[%emt 0:00:01]} Rd1 {[%emt 0:00:03]} 67. Bf3 {[%emt 0:00:07]} Rd4 {[%emt 0:00:05]} 68. Kg2 {[%emt 0:00:07]} Rb4 {[%emt 0:00:29]} 69. Kg3 {[%emt 0:00:05]} Rb3 {[%emt 0:00:07]} 70. Kg2 {[%emt 0:00:04]} Rb7 {[%emt 0:00:11]} 71. Bg4 {[%emt 0:00:11]} Kg7 {[%emt 0:00:03]} 72. Bf3 {[%emt 0:00:14]} Kf6 {[%emt 0:00:02]} 73. Rh5 {[%emt 0:00:13]} Rb3 {[%emt 0:00:10]} 74. Rh6+ {[%emt 0:00:05]} Kg5 {[%emt 0:00:09]} 75. Rh5+ {[%emt 0:00:02]} Kg6 {[%emt 0:00:02]} 76. Re5 {[%emt 0:00:24]} Kf6 {[%emt 0:00:12]} 77. Rh5 {[%emt 0:00:28]} Rb4 {[%emt 0:00:02]} 78. Rh6+ {[%emt 0:00:26]} Kg7 {[%emt 0:00:07]} 79. Rh5 {[%emt 0:00:04]} Kg6 {[%emt 0:00:01]} 80. Re5 {[%emt 0:00:01]} Kf6 {[%emt 0:00:01]} 81. Re1 {[%emt 0:00:06]} Rd4 {[%emt 0:00:09]} 82. Ra1 {[%emt 0:00:10]} Nf5 {[%emt 0:00:02]} 83. Rh1 {[%emt 0:00:19]} Nh4+ {[%emt 0:00:09]} 84. Kg3 {[%emt 0:00:02]} Kg5 {[%emt 0:00:07]} 85. Rh2 {[%emt 0:00:32]} Rb4 {[%emt 0:01:41]} 86. Rh1 {[%emt 0:00:35]} Ra4 {[%emt 0:00:31]} 87. Rh2 {[%emt 0:00:05]} f5 {[%emt 0:00:20]} 88. Rh3 {[%emt 0:01:22]} f4+ {[%emt 0:01:28]} 89. Kh2 Ra2 {[%emt 0:00:01]} 90. Kg1 {[%emt 0:01:31]} Ra1+ {[%emt 0:00:02]} 91. Kh2 {[%emt 0:00:01]} Rf1 {[%emt 0:00:07]} 92. Rxh4 {[%emt 0:00:23]} Kxh4 {[%emt 0:00:10]} 93. Kg2 {[%emt 0:00:00]} Ra1 {[%emt 0:00:09]} 94. Kh2 {[%emt 0:00:02]} Ra2 {[%emt 0:00:19]} 95. Kg2 {[%emt 0:00:02]} Rd2 {[%emt 0:00:02]} 96. Be4 {[%emt 0:00:05]} Kg4 {[%emt 0:00:05]} 97. Bf3+ {[%emt 0:00:09]} Kf5 {[%emt 0:00:01]} 98. Kf1 {[%emt 0:00:05]} Ke5 {[%emt 0:00:04]} 99. Ke1 {[%emt 0:00:04]} Ra2 {[%emt 0:01:21]} 100. Kf1 {[%emt 0:00:04]} Rb2 {[%emt 0:00:10]} 101. Ke1 {[%emt 0:00:01]} Kd4 {[%emt 0:00:05]} 102. Kf1 {[%emt 0:00:06]} Rb8 {[%emt 0:00:28]} 103. Ke2 {[%emt 0:00:12]} Rb1 {[%emt 0:00:11]} 104. Kd2 {[%emt 0:00:02]} Rb2+ {[%emt 0:00:23]} 105. Ke1 {[%emt 0:00:01]} Kd3 {[%emt 0:00:04]} 106. Kf1 {[%emt 0:00:05]} Kd2 {[%emt 0:00:03]} 107. Be4 {[%emt 0:01:00]} Rb4 {[%emt 0:00:13]} 108. Bf3 {[%emt 0:00:51]} Ra4 {[%emt 0:00:12]} 109. Bg4 {[%emt 0:00:27]} Ra2 {[%emt 0:00:19]} 110. Bf3 {[%emt 0:00:06]} Ra1+ {[%emt 0:00:42]} 111. Kg2 {[%emt 0:00:01]} Ke1 {[%emt 0:00:01]} 112. Bh5 {[%emt 0:00:48]} Ra5 {[%emt 0:00:32]} 113. Bf7 {[%emt 0:00:18]} Ra2 {[%emt 0:00:09]} 114. Kf3 {[%emt 0:00:03]} Rxf2+ {[%emt 0:00:02]} 115. Ke4 {[%emt 0:00:06]} Re2+ {[%emt 0:00:03]} 116. Kf3 {[%emt 0:00:06]} Rf2+ {[%emt 0:00:33]} 117. Ke4 {[%emt 0:00:01]} Kf1 {[%emt 0:00:11]} 118. Bh5 {[%emt 0:00:23]} Kg2 {[%emt 0:00:03]} 119. Ke5 {[%emt 0:00:07]} f3 {[%emt 0:00:07]} 120. Kf4 {[%emt 0:00:19]} Rf1 {[%emt 0:00:02]} 121. Bg4 {[%emt 0:00:13]} f2 {[%emt 0:00:02]} 0-1

[Event "EIRCC 2019"]
[Site "Tallinn"]
[Date "2019.12.05"]
[Round "3.7"]
[White "Andriasian, Zaven"]
[Black "Shubin, Kirill"]
[Result "1-0"]
[ECO "A05"]
[WhiteElo "2633"]
[BlackElo "2321"]
[Annotator "RC"]
[PlyCount "121"]
[EventDate "2019.12.05"]
[EventType "swiss"]
[EventCountry "EST"]
[SourceTitle "playchess.com"]
[Source "ChessBase"]
[SourceQuality "1"]
[TimeControl "900+10"]

1. Nf3 {[%emt 0:00:00]} Nf6 {[%emt 0:00:46]} 2. g3 {[%emt 0:00:00]} b5 {[%emt 0:00:07]} 3. Bg2 {[%emt 0:00:00]} Bb7 {[%emt 0:00:02]} 4. O-O {[%emt 0:00:08]} e6 {[%emt 0:00:14]} 5. d3 {[%emt 0:00:01]} c5 {[%emt 0:00:01]} 6. e4 {[%emt 0:00:03]} d6 {[%emt 0:00:02]} 7. Nbd2 {[%emt 0:00:13]} Nc6 {[%emt 0:00:06]} 8. a4 {[%emt 0:01:05]} b4 {[%emt 0:00:01]} 9. b3 {[%emt 0:01:15]} Be7 {[%emt 0:00:59]} 10. Bb2 {[%emt 0:00:02]} O-O {[%emt 0:00:29]} 11. Re1 {[%emt 0:00:09]} Nd7 {[%emt 0:00:59]} 12. Nc4 {[%emt 0:00:15]} Nb6 {[%emt 0:02:31]} 13. Ne3 {[%emt 0:00:01]} a5 {[%emt 0:00:24]} 14. Ng4 {[%emt 0:00:11]} e5 {[%emt 0:01:15]} 15. Ne3 {[%emt 0:00:06]} Nd4 {[%emt 0:00:08]} 16. Nd2 {[%emt 0:00:16]} Qd7 {[%emt 0:01:25]} 17. Rf1 {[%emt 0:00:15]} d5 {[%emt 0:01:21]} 18. exd5 {[%emt 0:00:46]} Nxd5 {[%emt 0:00:04]} 19. Ndc4 {[%emt 0:00:55]} Nxe3 {[%emt 0:02:35]} 20. fxe3 {[%emt 0:00:03]} Bxg2 {[%emt 0:01:01]} 21. Kxg2 {[%emt 0:00:01]} Qb7+ {[%emt 0:00:31]} 22. Kg1 {[%emt 0:00:10]} Nc6 {[%emt 0:00:01]} 23. Nxe5 {[%emt 0:00:17]} Nxe5 {[%emt 0:00:30]} 24. Bxe5 {[%emt 0:00:01]} Bg5 {[%emt 0:00:06]} 25. e4 {[%emt 0:01:37]} f5 {[%emt 0:00:35]} 26. Qe2 {[%emt 0:03:03]} Rae8 {[%emt 0:01:08]} 27. Bd6 {[%emt 0:00:29]} Rf6 {[%emt 0:00:14]} 28. Bf4 {[%emt 0:01:40]} Bxf4 {[%emt 0:00:37]} 29. Rxf4 {[%emt 0:00:02]} fxe4 {[%emt 0:01:02]} 30. Rxe4 {[%emt 0:00:21]} Ref8 {[%emt 0:00:01]} 31. Re1 {[%emt 0:00:20]} Qd7 {[%emt 0:00:20]} 32. Qg2 {[%emt 0:01:11]} h6 {[%emt 0:00:23]} 33. h4 {[%emt 0:00:44]} Qd6 {[%emt 0:00:11]} 34. Re8 {[%emt 0:01:12]} Qd4+ {[%emt 0:00:13]} 35. Kh1 {[%emt 0:00:01]} Qf2 {[%emt 0:00:14]} 36. R1e2 {[%emt 0:01:15]} Qd4 {[%emt 0:00:10]} 37. Rxf8+ {[%emt 0:00:35]} Rxf8 {[%emt 0:00:01]} 38. Kh2 {[%emt 0:00:06]} g5 {[%emt 0:00:20]} 39. Re4 {[%emt 0:00:52]} Qf6 {[%emt 0:00:03]} 40. Qe2 {[%emt 0:00:53]} gxh4 {[%emt 0:00:04]} 41. Rg4+ {[%emt 0:00:26]} Kh8 {[%emt 0:00:17]} 42. Rxh4 {[%emt 0:00:15]} Qf2+ {[%emt 0:00:04]} 43. Qxf2 Rxf2+ {[%emt 0:00:00]} 44. Kh3 {[%emt 0:00:02]} Rxc2 {[%emt 0:00:01]} 45. Rxh6+ {[%emt 0:00:00]} Kg7 {[%emt 0:00:01]} 46. Ra6 {[%emt 0:00:04]} Rc3 {[%emt 0:00:01]} 47. Rxa5 {[%emt 0:00:00]} Rxb3 {[%emt 0:00:06]} 48. Rxc5 {[%emt 0:00:03]} Rxd3 {[%emt 0:00:20]} 49. Rb5 {[%emt 0:00:53]} b3 {[%emt 0:00:13]} 50. a5 {[%emt 0:00:03]} Rc3 {[%emt 0:00:43]} 51. a6 {[%emt 0:00:22]} Rc6 {[%emt 0:00:05]} 52. Rb7+ {[%emt 0:00:22]} Kh6 {[%emt 0:00:13]} 53. a7 {[%emt 0:00:05]} Ra6 {[%emt 0:00:01]} 54. Rb6+ {[%emt 0:00:11]} Rxb6 {[%emt 0:00:02]} 55. a8=Q {[%emt 0:00:02]} b2 {[%emt 0:00:01]} 56. Qf8+ {[%emt 0:00:16]} Kg6 {[%emt 0:00:02]} 57. Qe8+ {[%emt 0:00:04]} Kf5 {[%emt 0:00:16]} 58. g4+ {[%emt 0:00:43]} Kf4 {[%emt 0:00:09]} 59. Qf8+ {[%emt 0:00:05]} Ke4 {[%emt 0:00:02]} 60. Qf5+ {[%emt 0:00:03]} Ke3 {[%emt 0:00:07]} 61. Qc5+ {[%emt 0:00:01]} 1-0

[Event "EIRCC 2019"]
[Site "Tallinn"]
[Date "2019.12.05"]
[Round "3.8"]
[White "Saveliev, Alexei"]
[Black "Lysyj, Igor"]
[Result "0-1"]
[ECO "C67"]
[WhiteElo "2312"]
[BlackElo "2599"]
[Annotator "ChessBase"]
[PlyCount "80"]
[EventDate "2019.12.05"]
[EventType "swiss"]
[EventCountry "EST"]
[SourceTitle "playchess.com"]
[Source "ChessBase"]
[SourceQuality "1"]
[TimeControl "900+10"]

1. e4 {[%emt 0:00:00]} e5 {[%emt 0:01:59]} 2. Nf3 {[%emt 0:00:00]} Nc6 {[%emt 0:00:03]} 3. Bb5 {[%emt 0:00:00]} Nf6 {[%emt 0:00:02]} 4. O-O {[%emt 0:01:15]} Nxe4 {[%emt 0:00:01]} 5. Re1 {[%emt 0:00:40]} Nd6 {[%emt 0:00:01]} 6. Nxe5 {[%emt 0:00:11]} Be7 {[%emt 0:00:02]} 7. Bf1 {[%emt 0:00:07]} Nxe5 {[%emt 0:00:02]} 8. Rxe5 {[%emt 0:00:02]} O-O {[%emt 0:00:02]} 9. Nc3 {[%emt 0:01:15]} Ne8 {[%emt 0:00:02]} 10. Nd5 {[%emt 0:00:13]} Bd6 {[%emt 0:00:03]} 11. Re1 {[%emt 0:00:01]} c6 {[%emt 0:00:24]} 12. Ne3 {[%emt 0:00:01]} Be7 {[%emt 0:00:35]} 13. Qe2 {[%emt 0:04:40]} Bf6 {[%emt 0:00:17]} 14. Ng4 {[%emt 0:01:08]} Bg5 {[%emt 0:02:02]} 15. d4 {[%emt 0:01:54]} d5 {[%emt 0:01:01]} 16. Bxg5 {[%emt 0:01:28]} Qxg5 {[%emt 0:00:02]} 17. Qxe8 {[%emt 0:00:33]} Be6 {[%emt 0:00:42]} 18. Re5 {[%emt 0:03:12]} Qxg4 {[%emt 0:00:22]} 19. Qe7 {[%emt 0:00:01]} Qxd4 {[%emt 0:00:14]} 20. Ree1 {[%emt 0:00:40]} Qxb2 {[%emt 0:04:50]} 21. Bd3 {[%emt 0:00:23]} b6 {[%emt 0:00:40]} 22. Rab1 {[%emt 0:00:31]} Qf6 {[%emt 0:00:12]} 23. Qb7 {[%emt 0:00:22]} c5 {[%emt 0:00:04]} 24. Bb5 {[%emt 0:00:01]} d4 {[%emt 0:00:52]} 25. Bc6 {[%emt 0:00:10]} Rac8 {[%emt 0:00:03]} 26. Bf3 {[%emt 0:00:05]} Bxa2 {[%emt 0:01:05]} 27. Rb2 {[%emt 0:00:01]} Bc4 {[%emt 0:00:15]} 28. Qxa7 {[%emt 0:00:03]} b5 {[%emt 0:00:07]} 29. Rbb1 {[%emt 0:00:02]} g6 {[%emt 0:00:12]} 30. Bg4 {[%emt 0:00:29]} Rc6 {[%emt 0:01:10]} 31. Bd7 {[%emt 0:00:03]} Rb6 {[%emt 0:00:02]} 32. Qc7 {[%emt 0:00:27]} Qd6 {[%emt 0:00:44]} 33. Qxd6 {[%emt 0:00:03]} Rxd6 {[%emt 0:00:01]} 34. Bxb5 {[%emt 0:00:01]} Be6 {[%emt 0:00:02]} 35. Red1 {[%emt 0:00:29]} c4 {[%emt 0:00:42]} 36. Ba4 {[%emt 0:00:12]} Ra8 {[%emt 0:00:11]} 37. Rb4 {[%emt 0:00:03]} Rda6 {[%emt 0:00:12]} 38. Bb5 {[%emt 0:00:06]} Ra1 {[%emt 0:00:11]} 39. Rf1 {[%emt 0:00:24]} Rxf1+ {[%emt 0:00:13]} 40. Kxf1 {[%emt 0:00:01]} Rb8 {[%emt 0:00:13]} 0-1

[Event "EIRCC 2019"]
[Site "Tallinn"]
[Date "2019.12.05"]
[Round "3.9"]
[White "Postny, Evgeny"]
[Black "Kukk, Sander"]
[Result "1/2-1/2"]
[ECO "E92"]
[WhiteElo "2598"]
[BlackElo "2313"]
[Annotator "ChessBase"]
[PlyCount "83"]
[EventDate "2019.12.05"]
[EventType "swiss"]
[EventCountry "EST"]
[SourceTitle "playchess.com"]
[Source "ChessBase"]
[SourceQuality "1"]
[TimeControl "900+10"]

1. d4 {[%emt 0:01:42]} g6 {[%emt 0:00:00]} 2. c4 {[%emt 0:00:02]} Bg7 {[%emt 0:00:00]} 3. e4 {[%emt 0:00:02]} d6 {[%emt 0:00:00]} 4. Nc3 {[%emt 0:00:02]} Nf6 {[%emt 0:00:00]} 5. Nf3 {[%emt 0:00:02]} O-O {[%emt 0:00:02]} 6. Be2 {[%emt 0:00:02]} e5 {[%emt 0:00:59]} 7. d5 {[%emt 0:00:04]} a5 {[%emt 0:00:16]} 8. h3 {[%emt 0:00:03]} Na6 {[%emt 0:00:26]} 9. Bg5 {[%emt 0:00:04]} h6 {[%emt 0:00:15]} 10. Be3 {[%emt 0:00:05]} Qe7 {[%emt 0:02:02]} 11. Nd2 {[%emt 0:00:31]} Nh7 {[%emt 0:00:37]} 12. O-O {[%emt 0:00:23]} f5 {[%emt 0:00:08]} 13. f3 {[%emt 0:00:03]} f4 {[%emt 0:00:59]} 14. Bf2 {[%emt 0:00:02]} g5 {[%emt 0:00:01]} 15. a3 {[%emt 0:00:04]} Bd7 {[%emt 0:01:39]} 16. b4 {[%emt 0:00:59]} h5 {[%emt 0:01:17]} 17. c5 {[%emt 0:00:18]} axb4 {[%emt 0:01:38]} 18. axb4 {[%emt 0:00:11]} Nxb4 {[%emt 0:00:55]} 19. Qb3 {[%emt 0:00:29]} Na6 {[%emt 0:01:28]} 20. c6 {[%emt 0:00:12]} bxc6 {[%emt 0:00:02]} 21. dxc6+ {[%emt 0:00:47]} Be6 {[%emt 0:00:02]} 22. Nd5 {[%emt 0:00:02]} Qf7 {[%emt 0:00:19]} 23. Rxa6 {[%emt 0:00:23]} Rab8 {[%emt 0:00:32]} 24. Qc2 {[%emt 0:00:59]} Bxd5 {[%emt 0:02:10]} 25. exd5 {[%emt 0:00:02]} e4 {[%emt 0:00:02]} 26. Nxe4 {[%emt 0:00:15]} Rb2 {[%emt 0:00:33]} 27. Qc4 {[%emt 0:01:08]} Rfb8 {[%emt 0:00:04]} 28. Ra2 {[%emt 0:00:46]} R2b4 {[%emt 0:00:40]} 29. Qd3 {[%emt 0:00:52]} Be5 {[%emt 0:00:06]} 30. Ra7 {[%emt 0:02:35]} Rb3 {[%emt 0:00:57]} 31. Qa6 {[%emt 0:00:25]} g4 {[%emt 0:00:25]} 32. fxg4 {[%emt 0:01:48]} f3 {[%emt 0:00:01]} 33. Bxf3 {[%emt 0:00:06]} Rxf3 {[%emt 0:00:02]} 34. gxf3 {[%emt 0:00:10]} Qxf3 {[%emt 0:00:02]} 35. Rxc7 {[%emt 0:01:57]} Qxh3 {[%emt 0:00:28]} 36. Rc8+ {[%emt 0:00:32]} Nf8 {[%emt 0:00:11]} 37. Bg3 {[%emt 0:01:36]} Bd4+ {[%emt 0:00:13]} 38. Bf2 {[%emt 0:00:22]} Be5 {[%emt 0:00:00]} 39. Bg3 {[%emt 0:00:38]} Bd4+ {[%emt 0:00:04]} 40. Bf2 {[%emt 0:00:03]} Be5 {[%emt 0:00:03]} 41. Bg3 {[%emt 0:00:25]} Bd4+ {[%emt 0:00:01]} 42. Bf2 1/2-1/2

[Event "EIRCC 2019"]
[Site "Tallinn"]
[Date "2019.12.05"]
[Round "3.10"]
[White "Rogule, Laura"]
[Black "Sanal, Vahap"]
[Result "0-1"]
[ECO "E17"]
[WhiteElo "2292"]
[BlackElo "2597"]
[Annotator "ChessBase"]
[PlyCount "82"]
[EventDate "2019.12.05"]
[EventType "swiss"]
[EventCountry "EST"]
[SourceTitle "playchess.com"]
[Source "ChessBase"]
[SourceQuality "1"]
[TimeControl "900+10"]

1. c4 {[%emt 0:00:00]} Nf6 {[%emt 0:02:21]} 2. Nf3 {[%emt 0:00:01]} e6 {[%emt 0:00:03]} 3. g3 {[%emt 0:00:37]} b6 {[%emt 0:00:06]} 4. Bg2 {[%emt 0:00:03]} Bb7 {[%emt 0:00:01]} 5. d4 {[%emt 0:00:25]} Be7 {[%emt 0:00:05]} 6. O-O {[%emt 0:00:03]} O-O {[%emt 0:00:03]} 7. Re1 {[%emt 0:00:19]} Na6 {[%emt 0:00:05]} 8. a3 {[%emt 0:01:37]} d5 {[%emt 0:00:28]} 9. cxd5 {[%emt 0:00:54]} exd5 {[%emt 0:00:04]} 10. Bf4 {[%emt 0:01:59]} c5 {[%emt 0:00:02]} 11. Nc3 {[%emt 0:02:43]} Nc7 {[%emt 0:00:15]} 12. h3 {[%emt 0:02:16]} Ne6 {[%emt 0:00:04]} 13. Be3 {[%emt 0:00:08]} Rc8 {[%emt 0:00:04]} 14. Rc1 {[%emt 0:00:08]} h6 {[%emt 0:00:20]} 15. Ne5 {[%emt 0:02:15]} Re8 {[%emt 0:00:20]} 16. dxc5 {[%emt 0:01:31]} bxc5 {[%emt 0:00:04]} 17. Na4 {[%emt 0:00:07]} Ba8 {[%emt 0:00:21]} 18. Nd3 {[%emt 0:00:23]} d4 {[%emt 0:00:13]} 19. Bd2 {[%emt 0:00:36]} Bxg2 {[%emt 0:00:05]} 20. Kxg2 {[%emt 0:00:00]} Ne4 {[%emt 0:00:26]} 21. Nf4 {[%emt 0:00:58]} Nxd2 {[%emt 0:00:09]} 22. Qxd2 {[%emt 0:00:10]} Nxf4+ {[%emt 0:00:02]} 23. gxf4 {[%emt 0:00:12]} Qd5+ {[%emt 0:00:05]} 24. e4 {[%emt 0:00:45]} Qc6 {[%emt 0:00:06]} 25. b3 {[%emt 0:00:15]} Rb8 {[%emt 0:00:21]} 26. Qc2 {[%emt 0:00:24]} Qg6+ {[%emt 0:00:14]} 27. Kh2 {[%emt 0:00:03]} Qf6 {[%emt 0:00:01]} 28. Nxc5 {[%emt 0:00:17]} Qxf4+ {[%emt 0:00:03]} 29. Kg2 {[%emt 0:00:06]} Rb6 {[%emt 0:00:18]} 30. e5 {[%emt 0:00:24]} Rg6+ {[%emt 0:00:08]} 31. Kf1 {[%emt 0:00:02]} Qh2 {[%emt 0:00:11]} 32. Qf5 {[%emt 0:00:14]} Rg1+ {[%emt 0:00:29]} 33. Ke2 {[%emt 0:00:00]} Rxe1+ {[%emt 0:00:01]} 34. Kxe1 {[%emt 0:00:03]} Qg1+ {[%emt 0:00:21]} 35. Kd2 {[%emt 0:00:05]} Bg5+ {[%emt 0:00:01]} 36. f4 {[%emt 0:00:04]} Qe3+ {[%emt 0:00:07]} 37. Kd1 {[%emt 0:00:24]} Bxf4 {[%emt 0:00:07]} 38. Rc2 {[%emt 0:00:31]} Rxe5 {[%emt 0:00:03]} 39. Qc8+ {[%emt 0:00:07]} Re8 {[%emt 0:00:02]} 40. Ne6 {[%emt 0:00:10]} Qd3+ {[%emt 0:00:04]} 41. Ke1 {[%emt 0:00:04]} Bg3+ {[%emt 0:00:02]} 0-1

[Event "EIRCC 2019"]
[Site "Tallinn"]
[Date "2019.12.05"]
[Round "3.11"]
[White "Riazantsev, Alexander"]
[Black "Shvyrjov, Igor"]
[Result "1-0"]
[ECO "A41"]
[WhiteElo "2594"]
[BlackElo "2296"]
[Annotator "ChessBase"]
[PlyCount "113"]
[EventDate "2019.12.05"]
[EventType "swiss"]
[EventCountry "EST"]
[SourceTitle "playchess.com"]
[Source "ChessBase"]
[SourceQuality "1"]
[TimeControl "900+10"]

1. d4 {[%emt 0:00:12]} d6 {[%emt 0:00:00]} 2. Nf3 {[%emt 0:00:08]} Bg4 {[%emt 0:00:03]} 3. e4 {[%emt 0:00:06]} Nf6 {[%emt 0:00:19]} 4. h3 {[%emt 0:00:03]} Bxf3 {[%emt 0:00:05]} 5. Qxf3 {[%emt 0:00:02]} c6 {[%emt 0:00:09]} 6. Nc3 {[%emt 0:00:16]} Nbd7 {[%emt 0:00:10]} 7. Be3 {[%emt 0:00:45]} g6 {[%emt 0:00:05]} 8. O-O-O {[%emt 0:00:10]} Qa5 {[%emt 0:00:08]} 9. g4 {[%emt 0:01:04]} Bg7 {[%emt 0:00:21]} 10. Bc4 {[%emt 0:00:01]} O-O {[%emt 0:00:06]} 11. Bb3 {[%emt 0:00:02]} b5 {[%emt 0:04:38]} 12. Kb1 {[%emt 0:01:51]} Qc7 {[%emt 0:00:33]} 13. g5 {[%emt 0:01:51]} Nh5 {[%emt 0:00:12]} 14. Ne2 {[%emt 0:00:01]} c5 {[%emt 0:00:45]} 15. dxc5 {[%emt 0:01:59]} Nxc5 {[%emt 0:00:49]} 16. Bd4 {[%emt 0:00:55]} Rac8 {[%emt 0:00:31]} 17. Bxg7 {[%emt 0:00:16]} Nxb3 {[%emt 0:00:20]} 18. Bc3 {[%emt 0:00:29]} Nc5 {[%emt 0:00:34]} 19. Qe3 {[%emt 0:02:48]} Na4 {[%emt 0:00:24]} 20. Rd2 {[%emt 0:00:37]} Nxc3+ {[%emt 0:00:15]} 21. Nxc3 {[%emt 0:00:02]} Qc5 {[%emt 0:00:57]} 22. Nd5 {[%emt 0:00:01]} Rfe8 {[%emt 0:02:01]} 23. Qf3 {[%emt 0:00:01]} b4 {[%emt 0:00:40]} 24. h4 {[%emt 0:00:08]} a5 {[%emt 0:00:02]} 25. Rc1 {[%emt 0:00:37]} Qc4 {[%emt 0:00:36]} 26. Nb6 {[%emt 0:00:37]} Qe6 {[%emt 0:00:11]} 27. Nxc8 Rxc8 28. Rd5 {[%emt 0:00:42]} Rc4 {[%emt 0:00:05]} 29. Re1 {[%emt 0:00:34]} a4 {[%emt 0:00:31]} 30. Qe3 {[%emt 0:00:01]} f5 {[%emt 0:00:15]} 31. gxf6 {[%emt 0:00:53]} Nxf6 {[%emt 0:00:02]} 32. Rd4 {[%emt 0:00:01]} Ng4 {[%emt 0:00:26]} 33. Qd2 {[%emt 0:00:01]} Ne5 {[%emt 0:00:25]} 34. Rxc4 {[%emt 0:00:12]} Nxc4 {[%emt 0:00:34]} 35. Qd5 {[%emt 0:00:04]} Kf7 {[%emt 0:00:26]} 36. f4 {[%emt 0:00:07]} Qxd5 {[%emt 0:00:35]} 37. exd5 {[%emt 0:00:01]} Nb6 {[%emt 0:00:01]} 38. Rd1 {[%emt 0:00:18]} Kf6 {[%emt 0:00:15]} 39. Rd4 {[%emt 0:00:06]} Kf5 {[%emt 0:00:16]} 40. Kc1 {[%emt 0:00:08]} a3 {[%emt 0:00:15]} 41. b3 {[%emt 0:00:08]} h5 {[%emt 0:00:09]} 42. Kd2 {[%emt 0:00:07]} Kg4 {[%emt 0:00:04]} 43. Ke3 {[%emt 0:00:13]} Kxh4 {[%emt 0:00:02]} 44. f5+ {[%emt 0:01:34]} Kg5 {[%emt 0:00:02]} 45. fxg6 {[%emt 0:00:01]} Kxg6 {[%emt 0:00:02]} 46. Ke4 {[%emt 0:00:01]} Nd7 {[%emt 0:00:10]} 47. Rxb4 {[%emt 0:00:21]} Nf6+ {[%emt 0:00:01]} 48. Kf3 {[%emt 0:00:07]} Nxd5 {[%emt 0:00:02]} 49. Ra4 {[%emt 0:00:00]} e5 {[%emt 0:00:16]} 50. Rxa3 {[%emt 0:00:17]} Kf5 {[%emt 0:00:05]} 51. Ra8 {[%emt 0:00:11]} e4+ {[%emt 0:00:02]} 52. Kg3 {[%emt 0:00:01]} h4+ {[%emt 0:00:18]} 53. Kxh4 {[%emt 0:00:06]} Kf4 {[%emt 0:00:05]} 54. a4 {[%emt 0:00:30]} e3 {[%emt 0:00:03]} 55. Rf8+ {[%emt 0:00:08]} Ke4 {[%emt 0:00:10]} 56. Kg3 {[%emt 0:00:01]} Nb4 {[%emt 0:00:24]} 57. Rf4+ {[%emt 0:00:03]} 1-0